bitfinex/quotes_ETHUSD_20230117
["timestamp","ask_amount","ask_price","bid_price","bid_amount"]
[1673919937418,0.51531454,1555.9,1555.8,9.82718876]
[1673919937619,0.51531454,1555.9,1555.8,20.35133126]
[1673919937773,0.51531454,1555.9,1555.8,30.92537483]
[1673919937982,0.51531454,1555.9,1555.8,26.99471214]
[1673919938192,0.51531454,1555.9,1555.8,25.31859595]
[1673919938403,0.51531454,1555.9,1555.8,23.83459595]
[1673919939876,0.51531454,1555.9,1555.8,25.27800598]
[1673919941404,0.51531454,1555.9,1555.8,25.2801341]
[1673919942867,0.51531454,1555.9,1555.8,23.35675549]
[1673919943059,0.51531454,1555.9,1555.8,22.35875549]
[1673919944281,0.51531454,1555.9,1555.8,23.3207547]
[1673919944496,0.51531454,1555.9,1555.8,23.32074939]
[1673919944962,0.51531454,1555.9,1555.8,23.32074421]
[1673919945386,0.51531454,1555.9,1555.8,1.45318554]
[1673919945601,0.51531454,1555.9,1555.8,1.44126551]
[1673919946864,0.51531454,1555.9,1555.8,16.70178426]
[1673919947077,0.51531454,1555.9,1555.8,15.75371557]
[1673919947229,0.51531454,1555.9,1555.8,18.18470947]
[1673919947439,0.51531454,1555.9,1555.8,21.18470947]
[1673919948548,0.51531454,1555.9,1555.8,24.15252716]
[1673919948864,0.029452,1556.2,1555.9,1.20837973]
[1673919949011,0.029452,1556.2,1556.1,6.42632]
[1673919949231,0.029452,1556.2,1556.1,7.8807818]
[1673919950038,0.029452,1556.2,1556.1,7.85699611]
[1673919950248,0.029452,1556.2,1556.1,9.53423818]
[1673919950813,0.029452,1556.2,1556.1,8.11748187]
[1673919951355,0.029452,1556.2,1556.1,9.53439373]
[1673919952029,0.029452,1556.2,1556.1,15.96071373]
[1673919952678,0.029452,1556.2,1556.1,25.96589362]
[1673919952858,5.666,1556.4,1556.2,2.59658936]
[1673919953065,5.666,1556.4,1556.3,9.56157126]
[1673919953292,5.666,1556.4,1556.3,31.71029393]
[1673919953546,5.666,1556.4,1556.3,34.8966204]
[1673919953710,5.666,1556.4,1556.3,32.42546293]
[1673919953916,5.666,1556.4,1556.3,35.98158964]
[1673919954130,5.666,1556.4,1556.3,34.98158964]
[1673919954343,5.666,1556.4,1556.3,34.02192412]
[1673919955944,5.666,1556.4,1556.3,32.34580793]
[1673919956661,5.666,1556.4,1556.3,30.92889607]
[1673919957319,5.666,1556.4,1556.3,32.34368316]
[1673919957854,5.666,1556.4,1556.3,30.92889607]
[1673919968187,5.666,1556.4,1556.3,32.34267744]
[1673919968325,5.666,1556.4,1556.3,33.81267714]
[1673919968535,5.666,1556.4,1556.3,33.81263402]
[1673919968745,5.666,1556.4,1556.3,30.91489607]
[1673919970059,5.666,1556.4,1556.3,27.798272]
[1673919970225,5.666,1556.4,1556.3,15.86490003]
[1673919974382,5.666,1556.4,1556.3,9.43941003]
[1673919974612,10.74882407,1556.4,1556.3,0.01]
[1673919974819,25.31298407,1556.4,1555.9,0.064]
[1673919975041,24.40832407,1556.3,1555.9,0.066]
[1673919975208,9.54261407,1556.2,1555.8,0.00072374]
[1673919975427,0.4822,1556.1,1555.8,0.00072374]
[1673919975818,1.9662,1556.1,1555.8,0.00072374]
[1673919976030,4.31324407,1556.0,1555.8,0.00072374]
[1673919976239,1.9653,1555.9,1555.8,0.00072374]
[1673919977304,0.4823,1555.9,1555.8,0.00072374]
[1673919980252,10.02606407,1555.9,1555.8,0.00072374]
[1673919980613,18.23320407,1555.9,1555.8,0.00072374]
[1673919980934,22.81724348,1555.9,1555.8,0.00072374]
[1673919981290,16.39010348,1555.9,1555.8,0.00072374]
[1673919984089,5.13233941,1555.9,1555.8,0.00072374]
[1673919984289,0.066,1555.9,1555.8,0.75672374]
[1673919984500,20.72862,1556.0,1555.8,0.00072374]
[1673919985815,20.24632,1556.0,1555.8,0.00072374]
[1673919987725,20.0497,1556.0,1555.8,6.42755]
[1673919987935,20.0497,1556.0,1555.8,12.86511]
[1673919988353,0.066,1556.0,1555.8,12.86511]
[1673919988543,14.8358,1556.2,1555.8,14.34911]
[1673919988759,14.9018,1556.2,1555.8,14.34911]
[1673919988969,14.9018,1556.2,1556.0,6.42673]
[1673919989294,0.066,1556.2,1556.0,6.43673]
[1673919989497,1.4822,1556.3,1556.0,6.43673]
[1673919989720,16.318,1556.3,1556.0,6.43673]
[1673919989974,16.384,1556.3,1556.0,6.43673]
[1673919990183,16.384,1556.3,1556.1,0.643673]
[1673919990184,14.9018,1556.3,1556.1,0.643673]
[1673919990393,14.9018,1556.3,1556.2,6.4259]
[1673919990713,0.066,1556.3,1556.2,6.4359]
[1673919990873,5.666,1556.4,1556.2,6.4359]
[1673919993406,5.666,1556.4,1556.2,12.8618]
[1673919993666,5.666,1556.4,1556.2,14.8605683]
[1673919994256,5.666,1556.4,1556.2,16.3395683]
[1673919994697,5.666,1556.4,1556.3,15.85098]
[1673919995003,5.666,1556.4,1556.3,15.86098]
[1673919995237,5.666,1556.4,1556.3,17.33898]
[1673919995408,5.666,1556.4,1556.3,20.87519724]
[1673919998557,5.666,1556.4,1556.3,20.89075821]
[1673920001293,5.666,1556.4,1556.3,24.00738228]
[1673920001821,5.666,1556.4,1556.3,25.41346823]
[1673920002659,5.666,1556.4,1556.3,27.06217267]
[1673920004499,3.11581101,1556.4,1556.3,27.06217267]
[1673920004810,3.04981101,1556.4,1556.3,27.06217267]
[1673920006049,3.04981101,1556.4,1556.3,28.02183819]
[1673920006226,0.066,1556.6,1556.3,31.21419997]
[1673920006442,15.73232355,1556.7,1556.5,3.962]
[1673920006651,15.73232355,1556.7,1556.6,7.60062407]
[1673920006921,9.26662605,1556.7,1556.6,21.94312407]
[1673920007110,0.10781013,1556.9,1556.7,1.0]
[1673920007296,0.10781013,1556.9,1556.8,4.59562407]
[1673920007513,0.10781013,1556.9,1556.8,27.42547648]
[1673920007727,0.10781013,1556.9,1556.8,27.43547648]
[1673920020451,0.10781013,1556.9,1556.8,24.43547648]
[1673920020667,0.11081013,1556.9,1556.8,23.87591407]
[1673920020870,0.10781013,1556.9,1556.8,23.87591407]
[1673920021080,0.10781013,1556.9,1556.8,22.39691407]
[1673920022446,0.10781013,1556.9,1556.8,25.39691407]
[1673920023852,0.11081013,1556.9,1556.8,25.39691407]
[1673920024042,0.10781013,1556.9,1556.8,25.39691407]
[1673920025296,0.10781013,1556.9,1556.8,6.43343]
[1673920025297,2.33925581,1556.9,1556.8,6.43343]
[1673920025513,2.82125581,1556.9,1556.8,0.01]
[1673920025746,2.82125581,1556.9,1556.5,6.4276068]
[1673920025747,4.30525581,1556.9,1556.5,6.4276068]
[1673920025960,0.91252558,1556.8,1556.5,6.4276068]
[1673920026921,1.91252558,1556.8,1556.5,6.4276068]
[1673920027291,0.91252558,1556.8,1556.5,6.4276068]
[1673920027776,0.91252558,1556.8,1556.6,3.0]
[1673920027964,2.39652558,1556.8,1556.6,3.0]
[1673920029250,3.39652558,1556.8,1556.6,3.0]
[1673920029397,1.17865256,1556.7,1556.5,6.4836068]
[1673920029611,1.472,1556.6,1556.5,0.0030068]
[1673920029861,1.9541,1556.6,1556.2,6.42562]
[1673920030034,0.4821,1556.5,1556.2,6.4286268]
[1673920030242,0.4821,1556.5,1556.2,7.97036024]
[1673920031432,0.4821,1556.5,1556.2,14.39614024]
[1673920031813,0.4821,1556.5,1556.2,17.51276431]
[1673920032022,0.4821,1556.6,1556.4,12.85016]
[1673920032233,0.4821,1556.6,1556.4,15.20774044]
[1673920032654,0.4821,1556.7,1556.4,15.20774044]
[1673920033706,0.4821,1556.7,1556.4,8.78266044]
[1673920034079,1.9661,1556.7,1556.4,12.8531668]
[1673920034801,1.0,1556.6,1556.4,12.8531668]
[1673920038509,2.484,1556.6,1556.4,12.8531668]
[1673920038941,2.434,1556.6,1556.4,0.0030068]
[1673920039103,1.7274,1556.5,1556.2,0.0590068]
[1673920039317,1.483,1556.4,1556.1,9.4290168]
[1673920039683,0.094,1556.6,1556.2,3.11662407]
[1673920039906,0.075,1556.6,1556.4,12.85016]
[1673920040129,7.6916,1556.8,1556.5,5.67293694]
[1673920040130,7.7666,1556.8,1556.5,5.67293694]
[1673920040272,7.7666,1556.8,1556.5,5.05098605]
[1673920040475,7.7666,1556.8,1556.6,12.8485]
[1673920040686,0.094,1556.8,1556.6,13.49784598]
[1673920040962,12.29551013,1556.9,1556.7,9.42384]
[1673920041122,12.29551013,1556.9,1556.7,9.4268468]
[1673920041535,0.20181013,1556.9,1556.7,9.4268468]
[1673920041782,0.10781013,1556.9,1556.7,11.7246154]
[1673920042113,0.10781013,1556.9,1556.7,0.0030068]
[1673920042259,1.10781013,1556.9,1556.5,3.0]
[1673920042474,7.53090013,1556.9,1556.5,3.0]
[1673920042686,7.62490013,1556.9,1556.5,3.0]
[1673920043035,0.76249001,1556.8,1556.5,3.0]
[1673920044183,0.76249001,1556.8,1556.5,9.42466]
[1673920044411,1.58981013,1556.9,1556.5,9.4276668]
[1673920045097,0.58981013,1556.9,1556.5,9.4276668]
[1673920045551,1.58981013,1556.9,1556.5,9.4276668]
[1673920046321,0.58981013,1556.9,1556.5,9.4276668]
[1673920047645,1.58981013,1556.9,1556.5,9.4276668]
[1673920047859,5.1338131,1556.9,1556.5,9.4276668]
[1673920048071,5.2278131,1556.9,1556.5,9.4276668]
[1673920048420,19.5458731,1556.9,1556.6,0.64633918]
[1673920048568,7.90745,1556.8,1556.6,0.64633918]
[1673920048781,0.790745,1556.7,1556.6,0.64633918]
[1673920049040,1.578,1556.8,1556.4,3.02467413]
[1673920049210,9.7078,1556.8,1556.4,3.66800651]
[1673920049553,10.8018,1556.8,1556.4,3.66800651]
[1673920050726,10.8018,1556.8,1556.4,3.02166733]
[1673920051097,10.8018,1556.8,1556.4,3.66800651]
[1673920051306,14.4171356,1556.8,1556.4,3.66800651]
[1673920051642,1.0,1556.7,1556.4,3.66800651]
[1673920052879,14.4171356,1556.8,1556.4,3.66800651]
[1673920053125,1.0,1556.7,1556.4,3.66800651]
[1673920053777,2.484,1556.7,1556.4,3.64633918]
[1673920053961,2.484,1556.7,1556.4,3.0]
[1673920053962,0.2484,1556.6,1556.4,3.0]
[1673920055715,1.484,1556.7,1556.4,3.0]
[1673920055926,2.484,1556.7,1556.4,3.0]
[1673920057543,13.4171356,1556.8,1556.4,9.44362643]
[1673920057756,9.8018,1556.8,1556.4,9.44663323]
[1673920058005,8.3178,1556.8,1556.4,9.44663323]
[1673920058535,8.3178,1556.8,1556.4,10.40629875]
[1673920059152,8.3178,1556.8,1556.4,9.44663323]
[1673920060103,8.3178,1556.8,1556.4,15.87171323]
[1673920060292,8.3178,1556.8,1556.4,18.50209614]
[1673920060470,8.3178,1556.8,1556.5,1.27382624]
[1673920061150,0.094,1556.8,1556.5,1.27382624]
[1673920061324,7.66023597,1556.9,1556.5,1.27382624]
[1673920061784,9.90177027,1556.9,1556.5,1.27382624]
[1673920062100,11.15727708,1556.8,1556.4,3.0590068]
[1673920062426,11.15727708,1556.8,1556.4,3.0]
[1673920062427,1.484,1556.6,1556.4,3.0]
[1673920062585,1.484,1556.6,1556.3,0.0590068]
[1673920062797,1.484,1556.6,1556.2,17.20529762]
[1673920063147,1.484,1556.6,1556.2,14.6934568]
[1673920063148,2.484,1556.6,1556.2,14.6934568]
[1673920063677,1.484,1556.6,1556.2,14.6934568]
[1673920063831,2.484,1556.6,1556.2,14.6934568]
[1673920064041,1.484,1556.6,1556.2,14.6934568]
[1673920064248,1.484,1556.6,1556.3,3.0]
[1673920064458,23.20981717,1556.7,1556.3,3.0]
[1673920064713,21.79039574,1556.7,1556.3,3.0]
[1673920067999,20.01986,1556.7,1556.4,1.27449307]
[1673920070452,20.01986,1556.7,1556.3,3.0590068]
[1673920070453,1.472,1556.5,1556.3,3.0590068]
[1673920070601,1.484,1556.4,1556.3,3.96166552]
[1673920070979,1.484,1556.5,1556.3,4.27448863]
[1673920071168,14.54442287,1556.7,1556.3,4.27448863]
[1673920071379,12.112,1556.7,1556.4,1.70193749]
[1673920071592,12.112,1556.7,1556.4,6.85234886]
[1673920071922,12.112,1556.7,1556.5,3.0]
[1673920072740,12.112,1556.7,1556.4,6.91135566]
[1673920072741,0.5761,1556.7,1556.4,6.91135566]
[1673920072950,0.4821,1556.7,1556.4,6.85535566]
[1673920073143,1.4821,1556.7,1556.4,6.85535566]
[1673920075079,21.63979825,1556.8,1556.4,6.85535566]
[1673920075282,23.12279825,1556.8,1556.4,6.85535566]
[1673920075595,1.0,1556.7,1556.4,6.4279068]
[1673920077614,23.60479825,1556.8,1556.4,6.4279068]
[1673920077918,23.60479825,1556.8,1556.6,6.42425]
[1673920077919,0.094,1556.8,1556.6,6.42425]
[1673920078106,0.003,1556.8,1556.7,1.27426478]
[1673920078281,0.10781013,1556.9,1556.7,5.14038349]
[1673920078490,0.10781013,1556.9,1556.7,10.29269551]
[1673920078953,0.10781013,1556.9,1556.7,16.71653551]
[1673920081515,0.10558614,1556.9,1556.7,16.71653551]
[1673920083577,0.10858614,1556.9,1556.7,16.71653551]
[1673920083838,0.10558614,1556.9,1556.8,8.09508355]
[1673920083963,0.10558614,1556.9,1556.8,11.09809035]
[1673920086335,0.10558614,1556.9,1556.8,17.52152035]
[1673920086760,0.10558614,1556.9,1556.8,17.52440769]
[1673920089066,0.10558614,1556.9,1556.8,17.52152035]
[1673920089281,0.10558614,1556.9,1556.8,15.8498668]
[1673920090269,0.94458614,1556.9,1556.8,3.0030068]
[1673920090538,1.94458614,1556.9,1556.7,3.0590068]
[1673920090706,1.94458614,1556.9,1556.7,3.0]
[1673920091250,5.06121021,1556.9,1556.6,8.4910068]
[1673920091465,2.484,1556.7,1556.6,0.0030068]
[1673920091637,2.484,1556.7,1556.4,0.95966552]
[1673920091841,1.484,1556.7,1556.4,1.27246086]
[1673920092324,1.484,1556.6,1556.4,1.27246086]
[1673920092639,3.91721,1556.6,1556.3,18.3012068]
[1673920092806,4.39931,1556.6,1556.3,8.3956068]
[1673920093025,3.91721,1556.6,1556.3,8.3956068]
[1673920093246,10.34158,1556.6,1556.3,8.3956068]
[1673920093434,10.43558,1556.6,1556.3,8.3956068]
[1673920093670,1.043558,1556.5,1556.3,8.3956068]
[1673920093882,3.01121,1556.6,1556.3,8.3956068]
[1673920094056,2.91721,1556.6,1556.3,0.0030068]
[1673920094257,2.91721,1556.6,1556.3,1.27256168]
[1673920094736,2.91721,1556.6,1556.3,4.27256168]
[1673920094947,1.484,1556.6,1556.3,3.0]
[1673920095115,1.9661,1556.7,1556.3,16.81061552]
[1673920095328,1.484,1556.7,1556.4,1.27256094]
[1673920095537,1.484,1556.7,1556.4,4.27256094]
[1673920095757,1.484,1556.7,1556.4,15.84978]
[1673920095950,1.484,1556.7,1556.4,18.18217803]
[1673920096360,7.688,1556.8,1556.5,1.27290548]
[1673920096630,7.688,1556.8,1556.6,12.8485]
[1673920096846,7.688,1556.8,1556.7,3.0]
[1673920096847,0.094,1556.8,1556.7,3.0]
[1673920097054,0.10558614,1556.9,1556.7,15.84768]
[1673920097363,0.10558614,1556.9,1556.7,18.08378048]
[1673920099218,0.10558614,1556.9,1556.7,15.8506868]
[1673920100483,0.10558614,1556.9,1556.8,1.27240119]
[1673920100833,0.10558614,1556.9,1556.7,15.9066868]
[1673920101025,0.10558614,1556.9,1556.7,15.8506868]
[1673920103032,0.10558614,1556.9,1556.7,3.0030068]
[1673920103249,1.58911942,1556.9,1556.7,3.0]
[1673920104346,0.10558614,1556.9,1556.7,3.0]
[1673920104560,0.10558614,1556.9,1556.7,9.42384]
[1673920104714,0.10558614,1556.9,1556.7,9.4268468]
[1673920110070,0.10558614,1556.9,1556.7,3.0030068]
[1673920110285,0.10558614,1556.9,1556.7,3.0]
[1673920110668,0.79658942,1556.9,1556.7,3.0]
[1673920110810,0.10558614,1556.9,1556.7,3.0]
[1673920111020,0.10558614,1556.9,1556.7,9.42381]
[1673920111244,0.10558614,1556.9,1556.7,9.4268168]
[1673920113230,0.10558614,1556.9,1556.7,15.8506568]
[1673920113439,0.10558614,1556.9,1556.7,17.40060358]
[1673920113710,0.10558614,1556.9,1556.7,21.34426349]
[1673920116022,0.10558614,1556.9,1556.7,17.40060358]
[1673920116335,0.10558614,1556.9,1556.7,9.4268168]
[1673920116486,1.10558614,1556.9,1556.7,9.4268168]
[1673920117978,18.55229021,1556.9,1556.7,3.0030068]
[1673920118185,4.32722902,1556.8,1556.7,2.99633366]
[1673920118635,4.32722902,1556.8,1556.6,8.2311068]
[1673920118815,4.32722902,1556.8,1556.6,0.0030068]
[1673920119049,1.484,1556.7,1556.4,0.96267232]
[1673920119380,1.1484,1556.6,1556.4,2.23389884]
[1673920119550,1.0984,1556.6,1556.4,2.23389884]
[1673920119770,1.0984,1556.6,1556.4,1.27423332]
[1673920119956,1.484,1556.5,1556.3,11.0270931]
[1673920120344,1.484,1556.5,1556.4,1.2741606]
[1673920120647,0.094,1556.6,1556.4,2.23382612]
[1673920120799,0.003,1556.6,1556.4,2.23382612]
[1673920121010,14.61582902,1556.8,1556.3,23.8776531]
[1673920121253,14.61582902,1556.8,1556.4,2.23351151]
[1673920121690,14.61582902,1556.8,1556.4,5.23351151]
[1673920121907,2.4615829,1556.7,1556.4,3.96267232]
[1673920122056,2.4615829,1556.7,1556.4,3.95966552]
[1673920122431,2.4615829,1556.7,1556.4,3.0]
[1673920123006,2.4115829,1556.7,1556.4,3.0]
[1673920123652,1.4615829,1556.7,1556.4,3.0]
[1673920123877,1.4615829,1556.7,1556.4,3.95966552]
[1673920124089,1.4615829,1556.7,1556.5,1.27359826]
[1673920124490,1.4615829,1556.7,1556.4,4.01867232]
[1673920124852,1.4615829,1556.7,1556.4,3.95966552]
[1673920126186,1.4615829,1556.7,1556.4,3.0]
[1673920126397,1.4615829,1556.7,1556.4,3.95966552]
[1673920126644,14.13382902,1556.8,1556.5,1.27212967]
[1673920128703,1.484,1556.7,1556.5,1.27212967]
[1673920130364,1.484,1556.7,1556.4,4.60895358]
[1673920130578,20.56629902,1556.8,1556.4,3.0]
[1673920130841,20.56629902,1556.8,1556.5,1.2721343]
[1673920130842,1.0,1556.7,1556.5,1.2721343]
[1673920131161,3.1566299,1556.7,1556.4,3.0590068]
[1673920131374,3.1566299,1556.7,1556.4,3.0]
[1673920133554,2.1566299,1556.7,1556.4,3.0]
[1673920133940,3.1566299,1556.7,1556.4,3.0]
[1673920135008,3.1566299,1556.7,1556.4,3.95966552]
[1673920135206,0.31566299,1556.6,1556.4,3.0]
[1673920135585,3.1566299,1556.7,1556.4,3.0]
[1673920136146,2.1566299,1556.7,1556.4,3.0]
[1673920136401,20.56629902,1556.8,1556.5,1.27238603]
[1673920138140,26.98996902,1556.8,1556.4,3.0590068]
[1673920138357,26.98996902,1556.8,1556.4,3.0]
[1673920138818,1.0,1556.7,1556.4,3.0]
[1673920139193,26.98996902,1556.8,1556.4,4.55808738]
[1673920139194,18.71107,1556.8,1556.4,4.55808738]
[1673920139402,18.71107,1556.8,1556.4,3.0]
[1673920140296,12.2876,1556.8,1556.4,3.95966552]
[1673920141451,12.2876,1556.8,1556.4,16.80967552]
[1673920141671,12.2876,1556.8,1556.5,1.27242941]
[1673920142055,1.0,1556.7,1556.5,1.27242941]
[1673920142402,0.1,1556.6,1556.5,1.27242941]
[1673920142621,1.0,1556.7,1556.5,1.27242941]
[1673920144567,1.003,1556.7,1556.5,1.27242941]
[1673920144782,1.0,1556.7,1556.5,1.27242941]
[1673920146603,12.2876,1556.8,1556.5,1.27242941]
[1673920146820,10.8036,1556.8,1556.5,15.08135493]
[1673920147037,0.094,1556.8,1556.6,2.7805649]
[1673920147184,0.19958614,1556.9,1556.7,1.27242941]
[1673920147563,0.10172015,1556.9,1556.7,14.12010941]
[1673920147738,0.10172015,1556.9,1556.8,4.41201094]
[1673920148703,0.10172015,1556.9,1556.8,10.83544094]
[1673920148919,0.10172015,1556.9,1556.8,10.83844774]
[1673920152331,0.10172015,1556.9,1556.8,9.4264368]
[1673920155637,0.10472015,1556.9,1556.8,9.4264368]
[1673920155808,0.10172015,1556.9,1556.8,9.4264368]
[1673920160887,0.10172015,1556.9,1556.8,17.12270678]
[1673920161401,0.10172015,1556.9,1556.8,19.5573723]
[1673920161572,0.10172015,1556.9,1556.8,30.263839]
[1673920162041,0.10172015,1556.9,1556.8,31.81378578]
[1673920162256,0.10172015,1556.9,1556.8,29.5232561]
[1673920162580,0.10172015,1556.9,1556.8,27.97714198]
[1673920163263,0.10172015,1556.9,1556.8,28.56597084]
[1673920163493,0.10172015,1556.9,1556.8,27.01602406]
[1673920164251,0.10172015,1556.9,1556.8,27.60519438]
[1673920164470,0.10172015,1556.9,1556.8,26.0552476]
[1673920165305,0.10172015,1556.9,1556.8,25.57457662]
[1673920166885,5.80444667,1557.0,1556.9,1.87155775]
[1673920167059,5.80444667,1557.0,1556.9,21.22740973]
[1673920167244,5.80444667,1557.0,1556.9,25.89698738]
[1673920167469,5.80444667,1557.0,1556.9,27.93669592]
[1673920167805,5.80444667,1557.0,1556.9,29.3781167]
[1673920168636,5.80444667,1557.0,1556.9,28.3781167]
[1673920168858,5.80444667,1557.0,1556.9,29.33792981]
[1673920169072,5.80444667,1557.0,1556.9,26.22130574]
[1673920169259,5.80085547,1557.0,1556.9,24.77988496]
[1673920174355,5.80085547,1557.0,1556.9,28.3781167]
[1673920174546,2.40230504,1557.0,1556.9,28.37516869]
[1673920174727,2.30830504,1557.0,1556.9,32.60048033]
[1673920175205,2.30830504,1557.0,1556.9,28.37516515]
[1673920177210,2.30830504,1557.0,1556.9,29.33366993]
[1673920177509,2.30830504,1557.0,1556.9,28.46211218]
[1673920177735,2.30830504,1557.0,1556.9,28.4621109]
[1673920179391,2.30830504,1557.0,1556.9,27.02364167]
[1673920180270,2.30830504,1557.0,1556.9,25.53964167]
[1673920181805,0.69682508,1557.2,1557.1,19.26657]
[1673920182170,0.60282508,1557.2,1557.1,22.2695768]
[1673920182692,0.12092508,1557.2,1557.1,22.2695768]
[1673920183298,0.12092508,1557.2,1557.1,24.68120786]
[1673920186245,0.12092508,1557.2,1557.1,22.2695768]
[1673920191133,0.12092508,1557.2,1557.1,23.29950989]
[1673920191428,0.12092508,1557.2,1557.1,22.2695768]
[1673920197251,0.12092508,1557.2,1557.1,23.30091006]
[1673920197709,0.12092508,1557.2,1557.1,22.2695768]
[1673920197938,0.12092508,1557.2,1557.1,23.30091026]
[1673920198125,0.12092508,1557.2,1557.1,22.2695768]
[1673920198543,0.12092508,1557.2,1557.1,23.30091014]
[1673920198785,0.12092508,1557.2,1557.1,22.2695768]
[1673920199412,0.12092508,1557.2,1557.1,23.30172435]
[1673920200421,0.12092508,1557.2,1557.1,24.26022785]
[1673920205345,0.12092508,1557.2,1557.1,25.69869708]
[1673920206437,0.11840217,1557.2,1557.1,24.26022785]
[1673920207064,0.95740217,1557.2,1557.1,1.03515435]
[1673920207235,1.54677097,1557.2,1556.9,1.0175103]
[1673920207452,2.78777097,1557.2,1557.0,0.97207443]
[1673920207695,2.78777097,1557.2,1556.9,0.9585035]
[1673920207924,2.78777097,1557.2,1556.9,1.93056463]
[1673920208241,3.78777097,1557.2,1556.9,1.93056463]
[1673920208475,0.3787771,1557.1,1556.9,1.93056463]
[1673920209218,0.3787771,1557.1,1556.8,14.34367603]
[1673920209219,1.0,1557.0,1556.8,2.38512339]
[1673920209525,1.0,1557.0,1556.9,0.9716903]
[1673920209526,0.482,1557.0,1556.9,0.9716903]
[1673920209887,1.6197771,1557.1,1556.9,0.9716903]
[1673920209888,2.1016771,1557.1,1556.9,0.9716903]
[1673920210098,2.1046771,1557.1,1556.9,0.9716903]
[1673920210366,2.1016771,1557.1,1556.9,0.9716903]
[1673920210990,0.21016771,1557.0,1556.9,0.9716903]
[1673920212247,2.1016771,1557.1,1556.9,0.9716903]
[1673920213205,0.8606771,1557.1,1556.9,0.9716903]
[1673920214199,1.8606771,1557.1,1556.9,0.9716903]
[1673920215056,0.8636771,1557.1,1556.9,0.9716903]
[1673920215265,0.4819,1557.1,1556.9,0.9716903]
[1673920216252,1.84130217,1557.2,1556.9,7.3946503]
[1673920216410,1.84130217,1557.2,1556.9,6.4259668]
[1673920216951,2.84130217,1557.2,1556.9,6.4259668]
[1673920217717,1.84130217,1557.2,1556.9,6.4259668]
[1673920217933,4.85580097,1557.2,1556.9,6.4259668]
[1673920218249,3.85580097,1557.2,1556.9,6.4259668]
[1673920218620,4.85580097,1557.2,1556.9,6.4259668]
[1673920219402,3.85580097,1557.2,1556.9,6.4259668]
[1673920219934,4.85580097,1557.2,1556.9,6.4259668]
[1673920220764,3.85580097,1557.2,1556.9,6.4259668]
[1673920227667,3.85580097,1557.2,1557.0,0.97078234]
[1673920227668,0.11840217,1557.2,1557.0,0.97078234]
[1673920227876,0.11840217,1557.2,1556.9,23.18285953]
[1673920228087,0.11840217,1557.2,1557.1,12.84438]
[1673920228302,0.11840217,1557.2,1557.1,13.81811977]
[1673920228552,0.11840217,1557.2,1557.1,12.8473868]
[1673920228866,0.11840217,1557.2,1557.1,6.4251968]
[1673920230068,0.11840217,1557.2,1557.1,7.3961052]
[1673920230278,0.11840217,1557.2,1557.1,7.39610523]
[1673920230494,0.11840217,1557.2,1557.1,7.39610271]
[1673920230940,0.11840217,1557.2,1557.1,6.4251968]
[1673920231169,0.11840217,1557.2,1557.1,9.17944484]
[1673920231534,0.11840217,1557.2,1557.1,15.60163484]
[1673920231956,0.11840217,1557.2,1557.1,16.56013834]
[1673920233227,0.11840217,1557.2,1557.1,15.60163484]
[1673920233550,0.11840217,1557.2,1557.1,18.60163484]
[1673920233741,0.11840217,1557.2,1557.1,19.56013834]
[1673920233949,0.11517448,1557.2,1557.1,23.91776241]
[1673920234215,0.11517448,1557.2,1557.1,26.68041075]
[1673920234787,0.11517448,1557.2,1557.1,38.57214323]
[1673920234971,0.11517448,1557.2,1557.1,35.3071929]
[1673920235273,0.11517448,1557.2,1557.1,33.86872367]
[1673920235492,0.11517448,1557.2,1557.1,35.3071929]
[1673920235643,0.11517448,1557.2,1557.1,33.86872367]
[1673920235845,0.11517448,1557.2,1557.1,35.3071929]
[1673920236057,0.11517448,1557.2,1557.1,33.86872367]
[1673920236262,0.11517448,1557.2,1557.1,35.3071929]
[1673920236747,0.11517448,1557.2,1557.1,33.86872367]
[1673920237438,0.11517448,1557.2,1557.1,20.34441633]
[1673920237652,0.95417448,1557.2,1557.1,8.6271068]
[1673920237859,0.95417448,1557.2,1557.1,0.0030068]
[1673920238071,0.95417448,1557.2,1557.0,6.4253168]
[1673920238278,1.16132051,1557.2,1557.0,6.4253168]
[1673920238589,1.15844861,1557.2,1557.0,6.4253168]
[1673920239179,0.11230258,1557.2,1557.0,6.4253168]
[1673920240609,0.11230258,1557.2,1557.0,12.8479168]
[1673920240993,0.11230258,1557.2,1557.1,0.97072027]
[1673920241219,0.11230258,1557.2,1557.1,16.81510027]
[1673920241464,0.11230258,1557.2,1557.1,16.81810707]
[1673920241673,0.11230258,1557.2,1557.1,21.29137037]
[1673920241887,0.11230258,1557.2,1557.1,22.89513445]
[1673920242097,0.11230258,1557.2,1557.1,28.4114134]
[1673920242255,0.11230258,1557.2,1557.1,32.63754938]
[1673920242466,0.11230258,1557.2,1557.1,33.56370291]
[1673920242721,0.11230258,1557.2,1557.1,42.27580291]
[1673920243116,0.11230258,1557.2,1557.1,41.62946373]
[1673920243341,0.11230258,1557.2,1557.1,41.62622833]
[1673920243523,0.11230258,1557.2,1557.1,37.40009235]
[1673920244177,0.11230258,1557.2,1557.1,41.62622833]
[1673920244358,0.11230258,1557.2,1557.1,37.40009235]
[1673920244568,0.11230258,1557.2,1557.1,37.11965085]
[1673920246544,0.11230258,1557.2,1557.1,37.11943897]
[1673920248162,0.11230258,1557.2,1557.1,35.68096974]
[1673920250525,0.11230258,1557.2,1557.1,29.05226802]
[1673920251989,0.11230258,1557.2,1557.1,29.28226802]
[1673920253864,0.11230258,1557.2,1557.1,32.39889209]
[1673920254113,0.11728584,1557.3,1557.2,13.69699076]
[1673920254337,0.11728584,1557.3,1557.2,18.98414954]
[1673920254488,0.11728584,1557.3,1557.2,24.13861126]
[1673920255556,0.11728584,1557.3,1557.2,22.33740901]
[1673920255767,0.11728584,1557.3,1557.2,15.85899756]
[1673920258071,0.11728584,1557.3,1557.2,16.81919981]
[1673920258385,0.12011262,1557.4,1557.3,1.0]
[1673920258631,0.12011262,1557.4,1557.3,28.56596928]
[1673920258845,0.12011262,1557.4,1557.3,36.03160314]
[1673920259034,0.12011262,1557.4,1557.3,35.07158824]
[1673920259470,0.12011262,1557.4,1557.3,30.84545226]
[1673920259849,0.12011262,1557.4,1557.3,30.84928369]
[1673920260522,0.12011262,1557.4,1557.3,39.24038369]
[1673920260895,0.12011262,1557.4,1557.3,38.24038369]
[1673920261110,0.12011262,1557.4,1557.3,37.762051]
[1673920261374,0.12011262,1557.4,1557.3,39.20052023]
[1673920261590,0.12011262,1557.4,1557.3,42.46651967]